[Event "Titled Tuesday Blitz January 03 Early 2023"]
[White "Ohanyan, Emin"]
[Black "Maksimenko, Viktor"]
[WhiteFideId "13312022"]
[BlackFideId "13710478"]
[WhiteElo "2444"]
[BlackElo "2196"]
[Result "1-0"]
[Round "02"]
[TimeControl "180+2"]
[Date "2023.01.03"]
[WhiteClock "0:00:58"]
[BlackClock "0:01:20"]

1. e4 {[%clk 0:03:00]}  e5 {[%clk 0:03:00]} 2. Nc3 {[%clk 0:03:01]}  Nc6 {[%clk 0:02:59]} 3. Bc4 {[%clk 0:03:01]}  Nf6 {[%clk 0:02:58]} 4. d3 {[%clk 0:03:02]}  Na5 {[%clk 0:02:57]} 5. Bb3 {[%clk 0:03:02]}  Bc5 {[%clk 0:02:54]} 6. f4 {[%clk 0:03:02]}  Nxb3 {[%clk 0:02:51]} 7. axb3 {[%clk 0:03:02]}  d6 {[%clk 0:02:51]} 8. Nf3 {[%clk 0:03:02]}  O-O {[%clk 0:02:48]} 9. Qe2 {[%clk 0:03:01]}  Re8 {[%clk 0:02:44]} 10. f5 {[%clk 0:03:01]}  h6 {[%clk 0:02:43]} 11. Be3 {[%clk 0:03:01]}  Bxe3 {[%clk 0:02:43]} 12. Qxe3 {[%clk 0:03:02]}  d5 {[%clk 0:02:44]} 13. Qe2 {[%clk 0:02:57]}  Qd6 {[%clk 0:02:40]} 14. O-O {[%clk 0:02:56]}  Bd7 {[%clk 0:02:40]} 15. h3 {[%clk 0:02:49]}  Bc6 {[%clk 0:02:40]} 16. g4 {[%clk 0:02:48]}  b5 {[%clk 0:02:37]} 17. Ra6 {[%clk 0:01:52]}  b4 {[%clk 0:02:19]} 18. Na4 {[%clk 0:01:35]}  dxe4 {[%clk 0:02:08]} 19. dxe4 {[%clk 0:01:35]}  Rad8 {[%clk 0:02:02]} 20. Qc4 {[%clk 0:01:30]}  Nxe4 {[%clk 0:01:45]} 21. Rxc6 {[%clk 0:01:28]}  Qd5 {[%clk 0:01:42]} 22. Rxc7 {[%clk 0:01:28]}  Ng3 {[%clk 0:01:40]} 23. Re1 {[%clk 0:01:22]}  e4 {[%clk 0:01:34]} 24. Qxd5 {[%clk 0:01:02]}  Rxd5 {[%clk 0:01:35]} 25. Nc5 {[%clk 0:00:58]}  exf3 {[%clk 0:01:20]} 26. Rxe8+ {[%clk 0:00:57]}  Kh7 {[%clk 0:01:20]} 27. Kf2 {[%clk 0:00:58]} 1-0


[Site "https://www.chess.com"]

[Event "Titled Tuesday Blitz January 03 Early 2023"]
[White "Sharifov, Mekhriddin"]
[Black "Ozen, Bahadir"]
[WhiteFideId "14701545"]
[BlackFideId "6337058"]
[WhiteElo "2209"]
[BlackElo "2369"]
[Result "1/2-1/2"]
[Round "02"]
[TimeControl "180+2"]
[Date "2023.01.03"]
[WhiteClock "0:00:47"]
[BlackClock "0:00:20"]

1. e4 {[%clk 0:03:00]}  d6 {[%clk 0:02:59]} 2. d4 {[%clk 0:03:00]}  Nf6 {[%clk 0:03:00]} 3. Nc3 {[%clk 0:03:01]}  e5 {[%clk 0:03:00]} 4. Nf3 {[%clk 0:03:02]}  Nbd7 {[%clk 0:03:00]} 5. Bc4 {[%clk 0:03:02]}  Be7 {[%clk 0:03:00]} 6. O-O {[%clk 0:03:02]}  O-O {[%clk 0:03:00]} 7. a4 {[%clk 0:03:03]}  c6 {[%clk 0:03:00]} 8. h3 {[%clk 0:03:02]}  b6 {[%clk 0:03:00]} 9. Qe2 {[%clk 0:03:01]}  a6 {[%clk 0:02:53]} 10. Be3 {[%clk 0:02:54]}  Bb7 {[%clk 0:02:38]} 11. Rfd1 {[%clk 0:02:53]}  Qc7 {[%clk 0:02:38]} 12. Bb3 {[%clk 0:02:44]}  b5 {[%clk 0:02:35]} 13. axb5 {[%clk 0:02:43]}  axb5 {[%clk 0:02:35]} 14. Rxa8 {[%clk 0:02:32]}  Bxa8 {[%clk 0:02:33]} 15. d5 {[%clk 0:02:32]}  b4 {[%clk 0:02:26]} 16. dxc6 {[%clk 0:02:31]}  bxc3 {[%clk 0:02:26]} 17. cxd7 {[%clk 0:02:31]}  Nxe4 {[%clk 0:01:53]} 18. Bc1 {[%clk 0:02:27]}  Bc6 {[%clk 0:01:43]} 19. Qc4 {[%clk 0:01:57]}  cxb2 {[%clk 0:01:41]} 20. Bxb2 {[%clk 0:01:58]}  Nc5 {[%clk 0:01:36]} 21. d8=Q {[%clk 0:01:49]}  Bxd8 {[%clk 0:01:27]} 22. Nxe5 {[%clk 0:01:46]}  Be8 {[%clk 0:01:20]} 23. Ng4 {[%clk 0:01:32]}  Nxb3 {[%clk 0:01:15]} 24. Qxb3 {[%clk 0:01:33]}  Kh8 {[%clk 0:01:03]} 25. Qd3 {[%clk 0:01:26]}  Be7 {[%clk 0:00:55]} 26. Ne3 {[%clk 0:01:09]}  f6 {[%clk 0:00:53]} 27. Nd5 {[%clk 0:01:04]}  Qd7 {[%clk 0:00:53]} 28. Nxe7 {[%clk 0:01:04]}  Qxe7 {[%clk 0:00:54]} 29. Qxd6 {[%clk 0:01:05]}  Qxd6 {[%clk 0:00:55]} 30. Rxd6 {[%clk 0:01:06]}  Bg6 {[%clk 0:00:55]} 31. c4 {[%clk 0:01:01]}  Rc8 {[%clk 0:00:56]} 32. c5 {[%clk 0:01:01]}  Kg8 {[%clk 0:00:52]} 33. Bd4 {[%clk 0:00:57]}  Be4 {[%clk 0:00:42]} 34. f3 {[%clk 0:00:57]}  Bc6 {[%clk 0:00:43]} 35. Bf2 {[%clk 0:00:54]}  Kf7 {[%clk 0:00:42]} 36. Rd2 {[%clk 0:00:54]}  Ke7 {[%clk 0:00:41]} 37. Kh2 {[%clk 0:00:55]}  h6 {[%clk 0:00:40]} 38. Ra2 {[%clk 0:00:54]}  Ra8 {[%clk 0:00:37]} 39. Re2+ {[%clk 0:00:55]}  Kf7 {[%clk 0:00:37]} 40. Bg3 {[%clk 0:00:54]}  Re8 {[%clk 0:00:35]} 41. Rb2 {[%clk 0:00:54]}  g5 {[%clk 0:00:31]} 42. Rb6 {[%clk 0:00:52]}  Rc8 {[%clk 0:00:31]} 43. Ra6 {[%clk 0:00:50]}  Ke6 {[%clk 0:00:30]} 44. Bd6 {[%clk 0:00:50]}  h5 {[%clk 0:00:29]} 45. Ra7 {[%clk 0:00:50]}  h4 {[%clk 0:00:29]} 46. Re7+ {[%clk 0:00:49]}  Kf5 {[%clk 0:00:29]} 47. Re2 {[%clk 0:00:31]}  Ra8 {[%clk 0:00:29]} 48. Kg1 {[%clk 0:00:31]}  Ra3 {[%clk 0:00:28]} 49. Kf2 {[%clk 0:00:31]}  Rb3 {[%clk 0:00:29]} 50. Rd2 {[%clk 0:00:31]}  Ra3 {[%clk 0:00:29]} 51. Be7 {[%clk 0:00:28]}  Ra6 {[%clk 0:00:22]} 52. Rd6 {[%clk 0:00:23]}  Bb5 {[%clk 0:00:22]} 53. Rb6 {[%clk 0:00:19]}  Rxb6 {[%clk 0:00:19]} 54. cxb6 {[%clk 0:00:20]}  Bc6 {[%clk 0:00:18]} 55. Bd8 {[%clk 0:00:21]}  Ke6 {[%clk 0:00:18]} 56. Ke3 {[%clk 0:00:21]}  Bb7 {[%clk 0:00:18]} 57. Kd4 {[%clk 0:00:21]}  Ba8 {[%clk 0:00:18]} 58. Kc5 {[%clk 0:00:22]}  Bb7 {[%clk 0:00:18]} 59. Kb5 {[%clk 0:00:22]}  Ke5 {[%clk 0:00:18]} 60. Kc5 {[%clk 0:00:20]}  Ke6 {[%clk 0:00:18]} 61. Bc7 {[%clk 0:00:16]}  Ba8 {[%clk 0:00:17]} 62. Kb5 {[%clk 0:00:15]}  Bb7 {[%clk 0:00:18]} 63. Bh2 {[%clk 0:00:15]}  Kd5 {[%clk 0:00:17]} 64. Bg1 {[%clk 0:00:11]}  Ke5 {[%clk 0:00:17]} 65. Bc5 {[%clk 0:00:10]}  Kd5 {[%clk 0:00:16]} 66. Be7 {[%clk 0:00:10]}  Ke6 {[%clk 0:00:17]} 67. Bb4 {[%clk 0:00:10]}  Kd5 {[%clk 0:00:17]} 68. Be1 {[%clk 0:00:10]}  Ke6 {[%clk 0:00:17]} 69. Kc5 {[%clk 0:00:10]}  Ba8 {[%clk 0:00:17]} 70. Bc3 {[%clk 0:00:09]}  Bb7 {[%clk 0:00:17]} 71. Kd4 {[%clk 0:00:08]}  Kf5 {[%clk 0:00:16]} 72. Ke3 {[%clk 0:00:08]}  Ba8 {[%clk 0:00:16]} 73. Kf2 {[%clk 0:00:09]}  Bb7 {[%clk 0:00:16]} 74. g3 {[%clk 0:00:09]}  hxg3+ {[%clk 0:00:17]} 75. Kxg3 {[%clk 0:00:10]}  Bc6 {[%clk 0:00:18]} 76. Bd2 {[%clk 0:00:09]}  Bb7 {[%clk 0:00:18]} 77. f4 {[%clk 0:00:08]}  Ba8 {[%clk 0:00:15]} 78. Bc1 {[%clk 0:00:06]}  Bb7 {[%clk 0:00:15]} 79. fxg5 {[%clk 0:00:06]}  fxg5 {[%clk 0:00:16]} 80. Kf2 {[%clk 0:00:06]}  Bc6 {[%clk 0:00:13]} 81. Ke2 {[%clk 0:00:05]}  g4 {[%clk 0:00:10]} 82. h4 {[%clk 0:00:04]}  g3 {[%clk 0:00:11]} 83. Kf1 {[%clk 0:00:04]}  Kg4 {[%clk 0:00:10]} 84. Bg5 {[%clk 0:00:05]}  g2+ {[%clk 0:00:11]} 85. Kf2 {[%clk 0:00:04]}  Bb7 {[%clk 0:00:12]} 86. Bd8 {[%clk 0:00:04]}  Bc6 {[%clk 0:00:12]} 87. Be7 {[%clk 0:00:04]}  Kh5 {[%clk 0:00:12]} 88. Bd8 {[%clk 0:00:05]}  Bb7 {[%clk 0:00:13]} 89. Kg1 {[%clk 0:00:05]}  Bc6 {[%clk 0:00:14]} 90. Be7 {[%clk 0:00:06]}  Bb7 {[%clk 0:00:14]} 91. Bf6 {[%clk 0:00:06]}  Bc6 {[%clk 0:00:15]} 92. b7 {[%clk 0:00:07]}  Bxb7 {[%clk 0:00:16]} 93. Bg5 {[%clk 0:00:07]}  Kg4 {[%clk 0:00:16]} 94. Bd8 {[%clk 0:00:08]}  Bc6 {[%clk 0:00:17]} 95. h5 {[%clk 0:00:08]}  Kxh5 {[%clk 0:00:16]} 96. Bb6 {[%clk 0:00:09]}  Kg4 {[%clk 0:00:17]} 97. Bf2 {[%clk 0:00:10]}  Kf3 {[%clk 0:00:18]} 98. Bc5 {[%clk 0:00:10]}  Bd5 {[%clk 0:00:19]} 99. Bb6 {[%clk 0:00:11]}  Be6 {[%clk 0:00:20]} 100. Ba7 {[%clk 0:00:12]}  Bf7 {[%clk 0:00:21]} 101. Bb6 {[%clk 0:00:13]}  Bg8 {[%clk 0:00:22]} 102. Ba7 {[%clk 0:00:14]}  Bh7 {[%clk 0:00:23]} 103. Bb6 {[%clk 0:00:15]}  Bg6 {[%clk 0:00:24]} 104. Ba7 {[%clk 0:00:16]}  Be8 {[%clk 0:00:25]} 105. Bb6 {[%clk 0:00:16]}  Bd7 {[%clk 0:00:25]} 106. Ba7 {[%clk 0:00:17]}  Bc6 {[%clk 0:00:26]} 107. Bb6 {[%clk 0:00:18]}  Bb7 {[%clk 0:00:27]} 108. Ba7 {[%clk 0:00:19]}  Ke4 {[%clk 0:00:28]} 109. Bb6 {[%clk 0:00:20]}  Kd5 {[%clk 0:00:29]} 110. Ba7 {[%clk 0:00:21]}  Kc4 {[%clk 0:00:30]} 111. Bb8 {[%clk 0:00:21]}  Kb4 {[%clk 0:00:30]} 112. Bg3 {[%clk 0:00:22]}  Kb5 {[%clk 0:00:31]} 113. Bh4 {[%clk 0:00:23]}  Bd5 {[%clk 0:00:32]} 114. Bg3 {[%clk 0:00:24]}  Kc6 {[%clk 0:00:33]} 115. Bh4 {[%clk 0:00:25]}  Kd7 {[%clk 0:00:34]} 116. Bg3 {[%clk 0:00:26]}  Ke8 {[%clk 0:00:35]} 117. Bf2 {[%clk 0:00:27]}  Kf7 {[%clk 0:00:36]} 118. Bd4 {[%clk 0:00:27]}  Kg8 {[%clk 0:00:37]} 119. Bc5 {[%clk 0:00:28]}  Kh7 {[%clk 0:00:38]} 120. Bf2 {[%clk 0:00:29]}  Kg6 {[%clk 0:00:38]} 121. Be3 {[%clk 0:00:30]}  Kf5 {[%clk 0:00:38]} 122. Ba7 {[%clk 0:00:30]}  Be4 {[%clk 0:00:38]} 123. Bb8 {[%clk 0:00:31]}  Ke6 {[%clk 0:00:39]} 124. Ba7 {[%clk 0:00:32]}  Kd5 {[%clk 0:00:40]} 125. Bf2 {[%clk 0:00:32]}  Kc6 {[%clk 0:00:29]} 126. Bg3 {[%clk 0:00:33]}  Kb7 {[%clk 0:00:30]} 127. Bf2 {[%clk 0:00:33]}  Kc8 {[%clk 0:00:30]} 128. Bg3 {[%clk 0:00:34]}  Kd7 {[%clk 0:00:31]} 129. Bf2 {[%clk 0:00:35]}  Ke8 {[%clk 0:00:32]} 130. Bg3 {[%clk 0:00:35]}  Kf7 {[%clk 0:00:33]} 131. Bf2 {[%clk 0:00:36]}  Kg6 {[%clk 0:00:34]} 132. Bg3 {[%clk 0:00:36]}  Bd5 {[%clk 0:00:22]} 133. Bf2 {[%clk 0:00:37]}  Bc6 {[%clk 0:00:23]} 134. Bg3 {[%clk 0:00:37]}  Bb7 {[%clk 0:00:23]} 135. Bf2 {[%clk 0:00:38]}  Ba8 {[%clk 0:00:24]} 136. Bg3 {[%clk 0:00:39]}  Kh7 {[%clk 0:00:25]} 137. Bf2 {[%clk 0:00:40]}  Kg8 {[%clk 0:00:26]} 138. Bg3 {[%clk 0:00:41]}  Kf7 {[%clk 0:00:27]} 139. Bf2 {[%clk 0:00:42]}  Ke8 {[%clk 0:00:28]} 140. Bg3 {[%clk 0:00:43]}  Kd8 {[%clk 0:00:16]} 141. Bf2 {[%clk 0:00:44]}  Kc8 {[%clk 0:00:16]} 142. Bg3 {[%clk 0:00:44]}  Kd7 {[%clk 0:00:17]} 143. Bf2 {[%clk 0:00:45]}  Kc6 {[%clk 0:00:18]} 144. Bg3 {[%clk 0:00:46]}  Kd5 {[%clk 0:00:19]} 145. Bf2 {[%clk 0:00:47]}  Kc4 {[%clk 0:00:20]} 1/2-1/2


[Site "https://www.chess.com"]

[Event "Titled Tuesday Blitz January 03 Early 2023"]
[White "Sethuraman, S.P."]
[Black "Maevsky, Nikolay"]
[WhiteFideId "5021596"]
[BlackFideId "4198220"]
[WhiteElo "2626"]
[BlackElo "2277"]
[Result "1-0"]
[Round "02"]
[TimeControl "180+2"]
[Date "2023.01.03"]
[WhiteClock "0:00:05"]
[BlackClock "0:00:03"]

1. d4 {[%clk 0:03:00]}  d5 {[%clk 0:03:00]} 2. c4 {[%clk 0:03:00]}  Nc6 {[%clk 0:02:59]} 3. Nf3 {[%clk 0:02:57]}  Bg4 {[%clk 0:02:59]} 4. cxd5 {[%clk 0:02:54]}  Bxf3 {[%clk 0:02:58]} 5. gxf3 {[%clk 0:02:54]}  Qxd5 {[%clk 0:02:58]} 6. e3 {[%clk 0:02:54]}  e5 {[%clk 0:02:58]} 7. Nc3 {[%clk 0:02:55]}  Bb4 {[%clk 0:02:58]} 8. a3 {[%clk 0:02:55]}  Bxc3+ {[%clk 0:02:58]} 9. bxc3 {[%clk 0:02:56]}  Qd6 {[%clk 0:02:55]} 10. Rb1 {[%clk 0:02:43]}  Rb8 {[%clk 0:02:54]} 11. d5 {[%clk 0:02:26]}  Nce7 {[%clk 0:02:48]} 12. c4 {[%clk 0:02:26]}  Nf6 {[%clk 0:02:44]} 13. Be2 {[%clk 0:02:17]}  O-O {[%clk 0:02:42]} 14. O-O {[%clk 0:02:17]}  e4 {[%clk 0:02:39]} 15. f4 {[%clk 0:02:14]}  c6 {[%clk 0:02:37]} 16. Bb2 {[%clk 0:02:11]}  Ng6 {[%clk 0:02:33]} 17. dxc6 {[%clk 0:02:01]}  Qxc6 {[%clk 0:02:33]} 18. Qc2 {[%clk 0:01:56]}  Rfe8 {[%clk 0:02:29]} 19. Kh1 {[%clk 0:01:54]}  Rbc8 {[%clk 0:02:12]} 20. Rbc1 {[%clk 0:01:47]}  Nh4 {[%clk 0:02:08]} 21. Rg1 {[%clk 0:01:43]}  Rcd8 {[%clk 0:01:54]} 22. Qc3 {[%clk 0:01:42]}  Re6 {[%clk 0:01:39]} 23. Rg3 {[%clk 0:01:06]}  g6 {[%clk 0:01:24]} 24. Qc2 {[%clk 0:00:58]}  Rd3 {[%clk 0:01:16]} 25. Kg1 {[%clk 0:00:56]}  Rd7 {[%clk 0:01:10]} 26. Qc3 {[%clk 0:00:48]}  b6 {[%clk 0:01:05]} 27. h3 {[%clk 0:00:44]}  Rdd6 {[%clk 0:00:42]} 28. Kh2 {[%clk 0:00:43]}  Kf8 {[%clk 0:00:41]} 29. a4 {[%clk 0:00:42]}  Kg8 {[%clk 0:00:40]} 30. a5 {[%clk 0:00:41]}  Rd7 {[%clk 0:00:38]} 31. Rg5 {[%clk 0:00:32]}  h6 {[%clk 0:00:29]} 32. Rb5 {[%clk 0:00:25]}  Kh7 {[%clk 0:00:23]} 33. axb6 {[%clk 0:00:22]}  axb6 {[%clk 0:00:23]} 34. Rg1 {[%clk 0:00:19]}  Rd3 {[%clk 0:00:21]} 35. Qc2 {[%clk 0:00:19]}  Rd7 {[%clk 0:00:19]} 36. Bd4 {[%clk 0:00:17]}  Qc7 {[%clk 0:00:11]} 37. Qb2 {[%clk 0:00:16]}  Rdd6 {[%clk 0:00:10]} 38. Be5 {[%clk 0:00:16]}  Qd7 {[%clk 0:00:10]} 39. Bxd6 {[%clk 0:00:16]}  Rxd6 {[%clk 0:00:10]} 40. Qc3 {[%clk 0:00:11]}  Qe6 {[%clk 0:00:08]} 41. Re5 {[%clk 0:00:09]}  Qc8 {[%clk 0:00:07]} 42. Rb5 {[%clk 0:00:08]}  Qd7 {[%clk 0:00:07]} 43. c5 {[%clk 0:00:07]}  bxc5 {[%clk 0:00:05]} 44. Rxc5 {[%clk 0:00:08]}  Rd2 {[%clk 0:00:05]} 45. Qxf6 {[%clk 0:00:06]}  Rxe2 {[%clk 0:00:05]} 46. Qxh4 {[%clk 0:00:06]}  Qd2 {[%clk 0:00:04]} 47. Rg2 {[%clk 0:00:06]}  Qd6 {[%clk 0:00:03]} 48. Re5 {[%clk 0:00:05]}  Re1 {[%clk 0:00:03]} 49. Qe7 {[%clk 0:00:05]}  Qd1 {[%clk 0:00:02]} 50. Qxf7+ {[%clk 0:00:04]}  Kh8 {[%clk 0:00:03]} 51. Re8# {[%clk 0:00:05]} 1-0


[Site "https://www.chess.com"]

[Event "Titled Tuesday Blitz January 03 Early 2023"]
[White "Cnejev, Vladimir-Alexandru"]
[Black "Harsha Bharathakoti"]
[WhiteFideId "1260898"]
[BlackFideId "5078776"]
[WhiteElo "2374"]
[BlackElo "2602"]
[Result "0-1"]
[Round "02"]
[TimeControl "180+2"]
[Date "2023.01.03"]
[WhiteClock "0:00:04"]
[BlackClock "0:00:08"]

1. e4 {[%clk 0:03:00]}  c6 {[%clk 0:02:58]} 2. d4 {[%clk 0:02:56]}  d5 {[%clk 0:02:58]} 3. exd5 {[%clk 0:02:56]}  cxd5 {[%clk 0:02:59]} 4. Bd3 {[%clk 0:02:56]}  Nc6 {[%clk 0:02:59]} 5. c3 {[%clk 0:02:57]}  Nf6 {[%clk 0:02:52]} 6. Bf4 {[%clk 0:02:56]}  Bg4 {[%clk 0:02:51]} 7. Qb3 {[%clk 0:02:56]}  Qd7 {[%clk 0:02:51]} 8. Nd2 {[%clk 0:02:56]}  e6 {[%clk 0:02:51]} 9. Ngf3 {[%clk 0:02:55]}  Bd6 {[%clk 0:02:52]} 10. Bxd6 {[%clk 0:02:55]}  Qxd6 {[%clk 0:02:53]} 11. O-O {[%clk 0:02:56]}  O-O {[%clk 0:02:53]} 12. Rae1 {[%clk 0:02:56]}  Ne7 {[%clk 0:02:47]} 13. Ne5 {[%clk 0:02:55]}  Bf5 {[%clk 0:02:47]} 14. Bxf5 {[%clk 0:02:41]}  Nxf5 {[%clk 0:02:48]} 15. Qd1 {[%clk 0:02:37]}  Qc7 {[%clk 0:02:36]} 16. g4 {[%clk 0:02:36]}  Nd6 {[%clk 0:02:35]} 17. Re3 {[%clk 0:02:34]}  b5 {[%clk 0:02:31]} 18. g5 {[%clk 0:02:26]}  Nd7 {[%clk 0:02:24]} 19. Nxd7 {[%clk 0:02:00]}  Qxd7 {[%clk 0:02:14]} 20. Rh3 {[%clk 0:01:54]}  g6 {[%clk 0:01:16]} 21. Qg4 {[%clk 0:01:39]}  f6 {[%clk 0:01:09]} 22. Re1 {[%clk 0:00:52]}  Rae8 {[%clk 0:00:52]} 23. Nf3 {[%clk 0:00:51]}  Ne4 {[%clk 0:00:34]} 24. gxf6 {[%clk 0:00:16]}  Rxf6 {[%clk 0:00:35]} 25. Re2 {[%clk 0:00:08]}  Ref8 {[%clk 0:00:35]} 26. Ne5 {[%clk 0:00:08]}  Qg7 {[%clk 0:00:29]} 27. f3 {[%clk 0:00:08]}  Nd6 {[%clk 0:00:30]} 28. Qg2 {[%clk 0:00:07]}  a5 {[%clk 0:00:27]} 29. Rg3 {[%clk 0:00:08]}  Nf5 {[%clk 0:00:23]} 30. Rh3 {[%clk 0:00:08]}  b4 {[%clk 0:00:24]} 31. Ng4 {[%clk 0:00:06]}  R6f7 {[%clk 0:00:23]} 32. Rxe6 {[%clk 0:00:06]}  bxc3 {[%clk 0:00:23]} 33. bxc3 {[%clk 0:00:07]}  Rc7 {[%clk 0:00:24]} 34. Qd2 {[%clk 0:00:03]}  Rfc8 {[%clk 0:00:22]} 35. f4 {[%clk 0:00:04]}  Rf8 {[%clk 0:00:11]} 36. Re5 {[%clk 0:00:03]}  Nd6 {[%clk 0:00:10]} 37. Re6 {[%clk 0:00:02]}  Ne4 {[%clk 0:00:09]} 38. Qe1 {[%clk 0:00:02]}  Rxf4 {[%clk 0:00:08]} 39. Re3 {[%clk 0:00:02]}  Rxg4+ {[%clk 0:00:07]} 40. Kh1 {[%clk 0:00:03]}  Rf7 {[%clk 0:00:06]} 41. R6xe4 {[%clk 0:00:03]}  Rxe4 {[%clk 0:00:06]} 42. Rxe4 {[%clk 0:00:04]}  dxe4 {[%clk 0:00:07]} 43. Qxe4 {[%clk 0:00:04]}  Qf6 {[%clk 0:00:08]} 44. Qa8+ {[%clk 0:00:04]}  Kg7 {[%clk 0:00:08]} 45. Qg2 {[%clk 0:00:04]} 0-1


[Site "https://www.chess.com"]

[Event "Titled Tuesday Blitz January 03 Early 2023"]
[White "Sanal, Vahap"]
[Black "Filgueira, Hernan"]
[WhiteFideId "6300545"]
[BlackFideId "101770"]
[WhiteElo "2600"]
[BlackElo "2283"]
[Result "1-0"]
[Round "02"]
[TimeControl "180+2"]
[Date "2023.01.03"]
[WhiteClock "0:00:49"]
[BlackClock "0:00:11"]

1. Nf3 {[%clk 0:02:56]}  d5 {[%clk 0:02:58]} 2. g3 {[%clk 0:02:55]}  Bg4 {[%clk 0:02:57]} 3. Bg2 {[%clk 0:02:55]}  c6 {[%clk 0:02:57]} 4. O-O {[%clk 0:02:55]}  Nd7 {[%clk 0:02:57]} 5. d3 {[%clk 0:02:55]}  Ngf6 {[%clk 0:02:57]} 6. h3 {[%clk 0:02:50]}  Bh5 {[%clk 0:02:56]} 7. g4 {[%clk 0:02:50]}  Bg6 {[%clk 0:02:55]} 8. Nh4 {[%clk 0:02:50]}  e6 {[%clk 0:02:54]} 9. e3 {[%clk 0:02:48]}  Bd6 {[%clk 0:02:44]} 10. Nd2 {[%clk 0:02:45]}  Qc7 {[%clk 0:02:37]} 11. a4 {[%clk 0:02:31]}  h5 {[%clk 0:02:29]} 12. Nxg6 {[%clk 0:02:29]}  fxg6 {[%clk 0:02:28]} 13. g5 {[%clk 0:02:29]}  Nh7 {[%clk 0:02:27]} 14. h4 {[%clk 0:02:28]}  O-O {[%clk 0:02:27]} 15. d4 {[%clk 0:02:14]}  Rf7 {[%clk 0:02:19]} 16. f4 {[%clk 0:02:14]}  Nhf8 {[%clk 0:02:17]} 17. c3 {[%clk 0:02:12]}  c5 {[%clk 0:02:15]} 18. Nf3 {[%clk 0:02:06]}  cxd4 {[%clk 0:02:08]} 19. cxd4 {[%clk 0:02:05]}  a5 {[%clk 0:02:07]} 20. Bd2 {[%clk 0:02:03]}  Nb8 {[%clk 0:02:03]} 21. Qb3 {[%clk 0:01:56]}  Nc6 {[%clk 0:02:02]} 22. Rac1 {[%clk 0:01:56]}  Ra6 {[%clk 0:01:56]} 23. Ne5 {[%clk 0:01:39]}  Bxe5 {[%clk 0:01:51]} 24. fxe5 {[%clk 0:01:39]}  Rf5 {[%clk 0:01:30]} 25. Bh3 {[%clk 0:01:30]}  Rxf1+ {[%clk 0:01:21]} 26. Rxf1 {[%clk 0:01:25]}  Ra8 {[%clk 0:01:21]} 27. Bc3 {[%clk 0:01:15]}  Qd7 {[%clk 0:01:20]} 28. Qb5 {[%clk 0:01:11]}  Qe7 {[%clk 0:01:01]} 29. Kg2 {[%clk 0:01:07]}  Nb4 {[%clk 0:00:57]} 30. Bxb4 {[%clk 0:00:59]}  axb4 {[%clk 0:00:56]} 31. Rc1 {[%clk 0:00:57]}  Rd8 {[%clk 0:00:19]} 32. Qb6 {[%clk 0:00:54]}  Re8 {[%clk 0:00:15]} 33. Rc7 {[%clk 0:00:53]}  Qd8 {[%clk 0:00:14]} 34. Qxb7 {[%clk 0:00:53]}  Qa8 {[%clk 0:00:10]} 35. Rxg7+ {[%clk 0:00:52]}  Kh8 {[%clk 0:00:11]} 36. Qf7 {[%clk 0:00:49]} 1-0


[Site "https://www.chess.com"]

[Event "Titled Tuesday Blitz January 03 Early 2023"]
[White "Florescu, Codrut-Constantin"]
[Black "Kobalia, Mikhail"]
[WhiteFideId "1202200"]
[BlackFideId "4119150"]
[WhiteElo "2259"]
[BlackElo "2578"]
[Result "0-1"]
[Round "02"]
[TimeControl "180+2"]
[Date "2023.01.03"]
[WhiteClock "0:02:20"]
[BlackClock "0:02:23"]

1. e4 {[%clk 0:02:58]}  c5 {[%clk 0:02:59]} 2. Nf3 {[%clk 0:02:57]}  e6 {[%clk 0:02:59]} 3. d4 {[%clk 0:02:57]}  cxd4 {[%clk 0:03:00]} 4. Nxd4 {[%clk 0:02:58]}  Nc6 {[%clk 0:03:00]} 5. Nc3 {[%clk 0:02:58]}  a6 {[%clk 0:03:00]} 6. Nxc6 {[%clk 0:02:56]}  bxc6 {[%clk 0:02:59]} 7. Bd3 {[%clk 0:02:57]}  d5 {[%clk 0:02:59]} 8. O-O {[%clk 0:02:56]}  Nf6 {[%clk 0:02:59]} 9. Qe2 {[%clk 0:02:55]}  Be7 {[%clk 0:02:58]} 10. e5 {[%clk 0:02:51]}  Nd7 {[%clk 0:02:57]} 11. Na4 {[%clk 0:02:50]}  Bb7 {[%clk 0:02:49]} 12. c4 {[%clk 0:02:49]}  Nb6 {[%clk 0:02:43]} 13. Nxb6 {[%clk 0:02:47]}  Qxb6 {[%clk 0:02:44]} 14. b3 {[%clk 0:02:47]}  d4 {[%clk 0:02:41]} 15. Qg4 {[%clk 0:02:42]}  g6 {[%clk 0:02:40]} 16. Bh6 {[%clk 0:02:40]}  c5 {[%clk 0:02:39]} 17. Rae1 {[%clk 0:02:36]}  a5 {[%clk 0:02:38]} 18. Be4 {[%clk 0:02:27]}  Bc6 {[%clk 0:02:28]} 19. Bxc6+ {[%clk 0:02:25]}  Qxc6 {[%clk 0:02:28]} 20. Re4 {[%clk 0:02:24]}  Bf8 {[%clk 0:02:25]} 21. Bxf8 {[%clk 0:02:22]}  Kxf8 {[%clk 0:02:24]} 22. Qg5 {[%clk 0:02:20]}  Qxe4 {[%clk 0:02:23]} 0-1


[Site "https://www.chess.com"]